[Event "*** Titled Tuesday Blitz"]
[Site "Chess.com"]
[Date "2019.08.06"]
[Round "8"]
[White "Mazanchenko_Dmitry"]
[Black "Nancy11111"]
[Result "1-0"]
[WhiteElo "2217"]
[BlackElo "2299"]
[TimeControl "180+2"]
[EndTime "14:55:36 PDT"]
[Termination "Mazanchenko_Dmitry won by checkmate"]

1. e4 {[%clk 0:03:01.9]} 1... c5 {[%clk 0:03:00.1]} 2. Ne2 {[%clk 0:03:02.4]}
2... d6 {[%clk 0:02:58.5]} 3. Nbc3 {[%clk 0:03:03.8]} 3... Nf6 {[%clk
0:02:58.1]} 4. d4 {[%clk 0:03:04.9]} 4... cxd4 {[%clk 0:02:59]} 5. Nxd4 {[%clk
0:03:06.8]} 5... a6 {[%clk 0:03:00.4]} 6. f4 {[%clk 0:03:07.8]} 6... e5 {[%clk
0:02:58.4]} 7. Nf3 {[%clk 0:03:08.7]} 7... Nc6 {[%clk 0:02:54.7]} 8. Bc4 {[%clk
0:03:04.5]} 8... Be7 {[%clk 0:02:55.2]} 9. fxe5 {[%clk 0:02:54.3]} 9... dxe5
{[%clk 0:02:55.6]} 10. Qxd8+ {[%clk 0:02:55]} 10... Bxd8 {[%clk 0:02:56.1]} 11.
Bg5 {[%clk 0:02:56.5]} 11... Bg4 {[%clk 0:02:47.1]} 12. Bxf6 {[%clk 0:02:54]}
12... Bxf6 {[%clk 0:02:47.3]} 13. Nd5 {[%clk 0:02:54.9]} 13... Bd8 {[%clk
0:02:34.9]} 14. O-O-O {[%clk 0:02:54.3]} 14... Bxf3 {[%clk 0:02:28.2]} 15. gxf3
{[%clk 0:02:54]} 15... Nd4 {[%clk 0:02:29.2]} 16. f4 {[%clk 0:02:44.7]} 16...
Rc8 {[%clk 0:02:28.2]} 17. Bd3 {[%clk 0:02:18.9]} 17... exf4 {[%clk 0:02:28.5]}
18. Kb1 {[%clk 0:02:12.5]} 18... Ne6 {[%clk 0:02:25]} 19. Rhf1 {[%clk
0:02:06.4]} 19... g5 {[%clk 0:02:24.1]} 20. h4 {[%clk 0:02:06]} 20... f6 {[%clk
0:02:24.9]} 21. e5 {[%clk 0:01:54.5]} 21... fxe5 {[%clk 0:02:13.2]} 22. hxg5
{[%clk 0:01:45.6]} 22... Nxg5 {[%clk 0:02:11.6]} 23. Rde1 {[%clk 0:01:46.5]}
23... Nf7 {[%clk 0:02:12.6]} 24. Rxf4 {[%clk 0:01:32]} 24... Rc5 {[%clk
0:02:04.8]} 25. c4 {[%clk 0:01:22.8]} 25... b5 {[%clk 0:02:04.4]} 26. b4 {[%clk
0:01:18.5]} 26... Rc6 {[%clk 0:01:56.2]} 27. cxb5 {[%clk 0:01:17.6]} 27... Re6
{[%clk 0:01:45.9]} 28. bxa6 {[%clk 0:01:10.4]} 28... Kd7 {[%clk 0:01:46.7]} 29.
Rxf7+ {[%clk 0:01:09.3]} 29... Kc6 {[%clk 0:01:45.4]} 30. Rxh7 {[%clk
0:00:54.1]} 30... Ree8 {[%clk 0:01:13]} 31. Rxh8 {[%clk 0:00:49.8]} 31... Rxh8
{[%clk 0:01:13.5]} 32. Be4 {[%clk 0:00:51.1]} 32... Bb6 {[%clk 0:01:11.7]} 33.
Nxb6+ {[%clk 0:00:49.9]} 33... Kxb6 {[%clk 0:01:12.7]} 34. b5 {[%clk 0:00:51.3]}
34... Rg8 {[%clk 0:01:01]} 35. a4 {[%clk 0:00:51.6]} 35... Rg5 {[%clk
0:00:54.7]} 36. Rc1 {[%clk 0:00:50.7]} 36... Rg4 {[%clk 0:00:54]} 37. Rc6+
{[%clk 0:00:51.7]} 37... Ka7 {[%clk 0:00:54.4]} 38. Rc7+ {[%clk 0:00:49.5]}
38... Kb6 {[%clk 0:00:53.2]} 39. Rb7+ {[%clk 0:00:51.4]} 39... Kc5 {[%clk
0:00:53.4]} 40. a7 {[%clk 0:00:52.7]} 40... Rxe4 {[%clk 0:00:54]} 41. a8=Q
{[%clk 0:00:53.3]} 41... Kb4 {[%clk 0:00:55.4]} 42. Re7 {[%clk 0:00:51.2]} 42...
Rc4 {[%clk 0:00:55.7]} 43. Rxe5 {[%clk 0:00:50.3]} 43... Ka3 {[%clk 0:00:56.7]}
44. Qf8+ {[%clk 0:00:50.1]} 44... Kxa4 {[%clk 0:00:55.8]} 45. b6 {[%clk
0:00:47.5]} 45... Kb3 {[%clk 0:00:53.8]} 46. b7 {[%clk 0:00:45]} 46... Ka4
{[%clk 0:00:50.7]} 47. Qa8+ {[%clk 0:00:34.2]} 47... Kb3 {[%clk 0:00:50.8]} 48.
b8=Q+ {[%clk 0:00:36.1]} 48... Kc3 {[%clk 0:00:51.8]} 49. Re3+ {[%clk
0:00:35.3]} 49... Kd2 {[%clk 0:00:52.7]} 50. Qh2+ {[%clk 0:00:25.9]} 50... Kxe3
{[%clk 0:00:49.3]} 51. Qa3+ {[%clk 0:00:26.1]} 51... Kd4 {[%clk 0:00:47.2]} 52.
Qf4+ {[%clk 0:00:26.4]} 52... Kd5 {[%clk 0:00:48]} 53. Qd3+ {[%clk 0:00:25.3]}
53... Ke6 {[%clk 0:00:44.7]} 54. Qdxc4+ {[%clk 0:00:25.5]} 54... Ke7 {[%clk
0:00:45.7]} 55. Qce4+ {[%clk 0:00:24.3]} 55... Kd8 {[%clk 0:00:45.9]} 56. Qff3
{[%clk 0:00:23.9]} 56... Kc7 {[%clk 0:00:45.9]} 57. Qc3+ {[%clk 0:00:24.8]}
57... Kd6 {[%clk 0:00:46.1]} 58. Qcd3+ {[%clk 0:00:26]} 58... Kc5 {[%clk
0:00:46.8]} 59. Qec4+ {[%clk 0:00:27.9]} 59... Kb6 {[%clk 0:00:47.4]} 60. Qdb3+
{[%clk 0:00:29.8]} 60... Ka7 {[%clk 0:00:48]} 61. Qca4# {[%clk 0:00:31.7]} 1-0

[Event "*** Titled Tuesday Blitz"]
[Site "Chess.com"]
[Date "2019.08.06"]
[Round "8"]
[White "sergiochess83"]
[Black "tigra"]
[Result "1-0"]
[WhiteElo "2915"]
[BlackElo "2750"]
[TimeControl "180+2"]
[EndTime "14:55:46 PDT"]
[Termination "sergiochess83 won by resignation"]

1. d4 {[%clk 0:03:01.9]} 1... Nf6 {[%clk 0:02:59.6]} 2. Bf4 {[%clk 0:03:01.7]}
2... e6 {[%clk 0:02:46.4]} 3. e3 {[%clk 0:03:01.9]} 3... b6 {[%clk 0:02:30.6]}
4. Nf3 {[%clk 0:02:54.4]} 4... Bb7 {[%clk 0:02:31.4]} 5. h3 {[%clk 0:02:49.3]}
5... c5 {[%clk 0:02:32]} 6. Bd3 {[%clk 0:02:42.1]} 6... Be7 {[%clk 0:02:31.3]}
7. O-O {[%clk 0:02:30.7]} 7... O-O {[%clk 0:02:31.5]} 8. Nbd2 {[%clk 0:02:05.7]}
8... Re8 {[%clk 0:02:29.9]} 9. c3 {[%clk 0:02:03.4]} 9... cxd4 {[%clk
0:02:24.5]} 10. exd4 {[%clk 0:02:02.5]} 10... d6 {[%clk 0:02:25]} 11. Re1 {[%clk
0:02:02.8]} 11... a6 {[%clk 0:02:25.5]} 12. a4 {[%clk 0:02:01.9]} 12... Bf8
{[%clk 0:02:25.4]} 13. Nf1 {[%clk 0:01:54.5]} 13... Nbd7 {[%clk 0:02:25.4]} 14.
Ng3 {[%clk 0:01:50.1]} 14... h6 {[%clk 0:02:18.6]} 15. Bc2 {[%clk 0:01:45]}
15... Qc7 {[%clk 0:02:17]} 16. Ne4 {[%clk 0:00:56.9]} 16... Nd5 {[%clk
0:02:10.6]} 17. Bh2 {[%clk 0:00:47]} 17... Rac8 {[%clk 0:02:11.1]} 18. Bb3
{[%clk 0:00:38.5]} 18... N5f6 {[%clk 0:02:07]} 19. Nfd2 {[%clk 0:00:35.1]} 19...
Qc6 {[%clk 0:02:02.9]} 20. f3 {[%clk 0:00:29.6]} 20... b5 {[%clk 0:01:53.9]} 21.
axb5 {[%clk 0:00:29]} 21... axb5 {[%clk 0:01:55.8]} 22. Kh1 {[%clk 0:00:28.6]}
22... Qb6 {[%clk 0:01:49.4]} 23. Qe2 {[%clk 0:00:26.2]} 23... Bd5 {[%clk
0:01:47.1]} 24. Bxd5 {[%clk 0:00:21.4]} 24... Nxd5 {[%clk 0:01:46.2]} 25. Qf2
{[%clk 0:00:17.7]} 25... Ra8 {[%clk 0:01:15.2]} 26. Qg3 {[%clk 0:00:15.5]} 26...
f5 {[%clk 0:01:15.5]} 27. Nf2 {[%clk 0:00:13.2]} 27... f4 {[%clk 0:01:13.5]} 28.
Qg6 {[%clk 0:00:14]} 28... Rxa1 {[%clk 0:00:36.9]} 29. Rxa1 {[%clk 0:00:14.5]}
29... N7f6 {[%clk 0:00:38.6]} 30. Ng4 {[%clk 0:00:15.6]} 30... Kh8 {[%clk
0:00:21.6]} 31. Nxf6 {[%clk 0:00:14.4]} 31... Nxf6 {[%clk 0:00:23.5]} 32. Ne4
{[%clk 0:00:15.2]} 32... Qd8 {[%clk 0:00:17.1]} 33. Nxf6 {[%clk 0:00:15.4]}
33... gxf6 {[%clk 0:00:17.9]} 34. Bxf4 {[%clk 0:00:16.5]} 34... Qe7 {[%clk
0:00:17.2]} 35. Bxh6 {[%clk 0:00:16.8]} 35... Rc8 {[%clk 0:00:11.4]} 36. Bxf8
{[%clk 0:00:16.5]} 36... Rxf8 {[%clk 0:00:12.2]} 37. Re1 {[%clk 0:00:15.5]}
37... b4 {[%clk 0:00:11.4]} 38. Qh5+ {[%clk 0:00:15.9]} 38... Kg7 {[%clk
0:00:12]} 39. cxb4 {[%clk 0:00:15.5]} 39... d5 {[%clk 0:00:11.1]} 40. Qxd5
{[%clk 0:00:14]} 40... Re8 {[%clk 0:00:09.7]} 41. Qc5 {[%clk 0:00:14.4]} 41...
Qd7 {[%clk 0:00:10.5]} 42. d5 {[%clk 0:00:12.2]} 42... e5 {[%clk 0:00:09.8]} 43.
Qc6 {[%clk 0:00:10.9]} 43... Rd8 {[%clk 0:00:07.4]} 44. Qxd7+ {[%clk 0:00:09]}
44... Rxd7 {[%clk 0:00:09.3]} 45. Rd1 {[%clk 0:00:10.3]} 45... Kf7 {[%clk
0:00:09.8]} 46. d6 {[%clk 0:00:10]} 46... Ke8 {[%clk 0:00:10.8]} 47. b5 {[%clk
0:00:09]} 47... Rb7 {[%clk 0:00:10.9]} 48. d7+ {[%clk 0:00:10.2]} 48... Kd8
{[%clk 0:00:12.2]} 49. Rd5 {[%clk 0:00:11.1]} 49... Rc7 {[%clk 0:00:13.4]} 50.
h4 {[%clk 0:00:09.6]} 50... Rc4 {[%clk 0:00:13.8]} 51. g3 {[%clk 0:00:09.5]}
51... Rc2 {[%clk 0:00:14.6]} 52. h5 {[%clk 0:00:09.7]} 1-0

[Event "*** Titled Tuesday Blitz"]
[Site "Chess.com"]
[Date "2019.08.06"]
[Round "8"]
[White "Durarbayli"]
[Black "SaraciNderim"]
[Result "1-0"]
[WhiteElo "2816"]
[BlackElo "2826"]
[TimeControl "180+2"]
[EndTime "14:56:48 PDT"]
[Termination "Durarbayli won on time"]

1. e4 {[%clk 0:03:01.9]} 1... e5 {[%clk 0:03:00.1]} 2. Nf3 {[%clk 0:03:02.2]}
2... Nc6 {[%clk 0:02:58.2]} 3. Bb5 {[%clk 0:03:02.8]} 3... Nf6 {[%clk
0:02:58.6]} 4. d3 {[%clk 0:03:03.4]} 4... Bc5 {[%clk 0:02:59.1]} 5. Bxc6 {[%clk
0:03:03.8]} 5... dxc6 {[%clk 0:03:00]} 6. Nbd2 {[%clk 0:03:04.8]} 6... O-O
{[%clk 0:02:59.6]} 7. Nc4 {[%clk 0:03:04.8]} 7... Nd7 {[%clk 0:02:58.3]} 8. Qe2
{[%clk 0:03:01.9]} 8... Qe7 {[%clk 0:02:58.6]} 9. Bd2 {[%clk 0:02:54.6]} 9... f6
{[%clk 0:02:58.9]} 10. g4 {[%clk 0:02:54.3]} 10... Nb6 {[%clk 0:02:58.8]} 11.
Ne3 {[%clk 0:02:48.8]} 11... Bxe3 {[%clk 0:02:58.2]} 12. Qxe3 {[%clk 0:02:49.1]}
12... Bxg4 {[%clk 0:02:59.4]} 13. Nh4 {[%clk 0:02:40.2]} 13... f5 {[%clk
0:02:55.1]} 14. Qg3 {[%clk 0:02:39.4]} 14... Qf7 {[%clk 0:01:37.6]} 15. h3
{[%clk 0:01:55.7]} 15... Bh5 {[%clk 0:01:29.9]} 16. Nxf5 {[%clk 0:01:56.2]}
16... Bg6 {[%clk 0:01:29.9]} 17. Nh4 {[%clk 0:01:54]} 17... Bh5 {[%clk 0:01:29]}
18. Rg1 {[%clk 0:01:42.1]} 18... Kh8 {[%clk 0:01:27]} 19. Nf5 {[%clk 0:01:02.8]}
19... Bg6 {[%clk 0:01:26.3]} 20. Ne3 {[%clk 0:01:00.4]} 20... c5 {[%clk
0:01:21.4]} 21. O-O-O {[%clk 0:00:55.6]} 21... Qxa2 {[%clk 0:01:15.5]} 22. Bc3
{[%clk 0:00:56.4]} 22... Nd7 {[%clk 0:00:41.6]} 23. b3 {[%clk 0:00:56.7]} 23...
Qa6 {[%clk 0:00:33.3]} 24. h4 {[%clk 0:00:44.5]} 24... Qf6 {[%clk 0:00:29.8]}
25. Ng4 {[%clk 0:00:23.1]} 25... Qf4+ {[%clk 0:00:28.6]} 26. Qxf4 {[%clk
0:00:22.9]} 26... exf4 {[%clk 0:00:23.3]} 27. Ne5 {[%clk 0:00:19.5]} 27... Nxe5
{[%clk 0:00:22.3]} 28. Bxe5 {[%clk 0:00:21.4]} 28... Rae8 {[%clk 0:00:21.3]} 29.
Bxc7 {[%clk 0:00:16.6]} 29... Bh5 {[%clk 0:00:19.8]} 30. Rde1 {[%clk 0:00:15.6]}
30... Rf7 {[%clk 0:00:20.9]} 31. Bd6 {[%clk 0:00:16.2]} 31... b6 {[%clk
0:00:21.5]} 32. Rg5 {[%clk 0:00:16.7]} 32... g6 {[%clk 0:00:20.2]} 33. Rd5
{[%clk 0:00:13.6]} 33... Kg8 {[%clk 0:00:20.6]} 34. Be5 {[%clk 0:00:12.4]} 34...
Bg4 {[%clk 0:00:19.6]} 35. Bc3 {[%clk 0:00:10.9]} 35... Be6 {[%clk 0:00:20]} 36.
Rg5 {[%clk 0:00:11.8]} 36... Rd7 {[%clk 0:00:11.4]} 37. h5 {[%clk 0:00:12.1]}
37... Bf7 {[%clk 0:00:12.6]} 38. Rh1 {[%clk 0:00:09.6]} 38... a5 {[%clk
0:00:11.7]} 39. Rh4 {[%clk 0:00:10.3]} 39... f3 {[%clk 0:00:12.4]} 40. Rf4
{[%clk 0:00:08.1]} 40... a4 {[%clk 0:00:12.2]} 41. bxa4 {[%clk 0:00:08.5]} 41...
c4 {[%clk 0:00:13.3]} 42. Rxf3 {[%clk 0:00:07.5]} 42... cxd3 {[%clk 0:00:14.6]}
43. cxd3 {[%clk 0:00:09.4]} 43... Rc8 {[%clk 0:00:13.8]} 44. Kd2 {[%clk
0:00:10.5]} 44... Rdc7 {[%clk 0:00:14.9]} 45. Be5 {[%clk 0:00:10.8]} 45... Rc2+
{[%clk 0:00:15.9]} 46. Ke3 {[%clk 0:00:12.3]} 46... Ra2 {[%clk 0:00:16.7]} 47.
hxg6 {[%clk 0:00:12.7]} 47... Bxg6 {[%clk 0:00:18]} 48. Rf6 {[%clk 0:00:12.6]}
48... Rcc2 {[%clk 0:00:16.9]} 49. f4 {[%clk 0:00:11.2]} 49... Re2+ {[%clk
0:00:17.8]} 50. Kd4 {[%clk 0:00:12.2]} 50... Rxa4+ {[%clk 0:00:18.7]} 51. Kd5
{[%clk 0:00:13]} 51... Rd2 {[%clk 0:00:15.4]} 52. d4 {[%clk 0:00:12.3]} 52...
Ra5+ {[%clk 0:00:12]} 53. Ke6 {[%clk 0:00:13]} 53... Ra6 {[%clk 0:00:03.7]} 54.
Rgxg6+ {[%clk 0:00:13.1]} 54... hxg6 {[%clk 0:00:03.8]} 55. Rxg6+ {[%clk
0:00:15]} 55... Kh7 {[%clk 0:00:05.6]} 56. Rg1 {[%clk 0:00:15.1]} 56... b5+
{[%clk 0:00:06.3]} 57. Kf5 {[%clk 0:00:15.8]} 57... Rc2 {[%clk 0:00:04.7]} 58.
d5 {[%clk 0:00:13.7]} 58... b4 {[%clk 0:00:05.8]} 59. Rg7+ {[%clk 0:00:13]}
59... Kh6 {[%clk 0:00:05.7]} 60. Rb7 {[%clk 0:00:14.4]} 60... Rh2 {[%clk
0:00:04.1]} 61. Bf6 {[%clk 0:00:14.6]} 1-0

[Event "*** Titled Tuesday Blitz"]
[Site "Chess.com"]
[Date "2019.08.06"]
[Round "8"]
[White "yoolund"]
[Black "Ravan_02"]
[Result "1/2-1/2"]
[WhiteElo "2648"]
[BlackElo "2609"]
[TimeControl "180+2"]
[EndTime "14:57:08 PDT"]
[Termination "Game drawn - insufficient material"]

1. d4 {[%clk 0:03:01.9]} 1... Nf6 {[%clk 0:02:58.7]} 2. Bg5 {[%clk 0:03:01.5]}
2... d5 {[%clk 0:02:56.7]} 3. Bxf6 {[%clk 0:03:01.3]} 3... exf6 {[%clk
0:02:57.7]} 4. e3 {[%clk 0:03:03.2]} 4... Bd6 {[%clk 0:02:58.2]} 5. c4 {[%clk
0:03:04.5]} 5... dxc4 {[%clk 0:02:59.2]} 6. Bxc4 {[%clk 0:03:06.4]} 6... c6
{[%clk 0:03:00.5]} 7. Nc3 {[%clk 0:03:07.5]} 7... O-O {[%clk 0:03:00.8]} 8. Nge2
{[%clk 0:03:08.5]} 8... f5 {[%clk 0:03:01.5]} 9. O-O {[%clk 0:03:09.2]} 9... Nd7
{[%clk 0:03:02.7]} 10. Ng3 {[%clk 0:03:10]} 10... Nf6 {[%clk 0:03:03.2]} 11. Qf3
{[%clk 0:03:11]} 11... Bxg3 {[%clk 0:02:44.3]} 12. hxg3 {[%clk 0:03:10.1]} 12...
Qd6 {[%clk 0:02:28.2]} 13. Bd3 {[%clk 0:02:39.7]} 13... g6 {[%clk 0:02:21.9]}
14. Qf4 {[%clk 0:02:33.7]} 14... Qe7 {[%clk 0:02:11.4]} 15. Rfe1 {[%clk
0:02:27.3]} 15... Kg7 {[%clk 0:02:12.4]} 16. e4 {[%clk 0:02:15]} 16... fxe4
{[%clk 0:02:13.3]} 17. Nxe4 {[%clk 0:02:15.9]} 17... Nxe4 {[%clk 0:02:14.1]} 18.
Bxe4 {[%clk 0:02:14.5]} 18... Be6 {[%clk 0:02:09.2]} 19. d5 {[%clk 0:02:12]}
19... cxd5 {[%clk 0:02:08.7]} 20. Bxd5 {[%clk 0:02:13.8]} 20... Qf6 {[%clk
0:02:10]} 21. Qxf6+ {[%clk 0:01:56.8]} 21... Kxf6 {[%clk 0:02:11.5]} 22. Bxe6
{[%clk 0:01:58.7]} 22... fxe6 {[%clk 0:02:13.4]} 23. Re4 {[%clk 0:01:42.3]}
23... Rfd8 {[%clk 0:02:04.4]} 24. Rae1 {[%clk 0:01:43.3]} 24... Rd6 {[%clk
0:02:05.3]} 25. Rf4+ {[%clk 0:01:28.8]} 25... Ke7 {[%clk 0:02:04.8]} 26. Rc1
{[%clk 0:01:22]} 26... Rad8 {[%clk 0:01:48.5]} 27. Rh4 {[%clk 0:00:56.2]} 27...
Rd1+ {[%clk 0:01:39.6]} 28. Rxd1 {[%clk 0:00:56.8]} 28... Rxd1+ {[%clk
0:01:41.5]} 29. Kh2 {[%clk 0:00:58.7]} 29... h5 {[%clk 0:01:43.1]} 30. g4 {[%clk
0:01:00]} 30... Rd2 {[%clk 0:01:08.7]} 31. gxh5 {[%clk 0:00:57.6]} 31... gxh5
{[%clk 0:01:10.6]} 32. Rb4 {[%clk 0:00:49.2]} 32... b6 {[%clk 0:01:04.2]} 33. f3
{[%clk 0:00:49.4]} 33... Kd6 {[%clk 0:00:53.7]} 34. a4 {[%clk 0:00:47.7]} 34...
Kc6 {[%clk 0:00:37.9]} 35. Kh3 {[%clk 0:00:38.9]} 35... a6 {[%clk 0:00:34.3]}
36. g4 {[%clk 0:00:25.7]} 36... hxg4+ {[%clk 0:00:32.8]} 37. fxg4 {[%clk
0:00:26.1]} 37... Kc5 {[%clk 0:00:19.7]} 38. Rb3 {[%clk 0:00:27]} 38... e5
{[%clk 0:00:10.6]} 39. g5 {[%clk 0:00:25.9]} 39... e4 {[%clk 0:00:09.8]} 40. g6
{[%clk 0:00:14.2]} 40... Rd3+ {[%clk 0:00:10.4]} 41. Rxd3 {[%clk 0:00:13.9]}
41... exd3 {[%clk 0:00:11.4]} 42. g7 {[%clk 0:00:15.8]} 42... d2 {[%clk
0:00:12.9]} 43. g8=Q {[%clk 0:00:17.7]} 43... d1=Q {[%clk 0:00:14.8]} 44. Qc8+
{[%clk 0:00:13.3]} 44... Kb4 {[%clk 0:00:07.1]} 45. Qxa6 {[%clk 0:00:07.9]}
45... Qf3+ {[%clk 0:00:07.5]} 46. Kh2 {[%clk 0:00:07.4]} 46... Qf4+ {[%clk
0:00:08.1]} 47. Kh3 {[%clk 0:00:08.5]} 47... Qf5+ {[%clk 0:00:08.4]} 48. Kg3
{[%clk 0:00:07.8]} 48... Qe5+ {[%clk 0:00:09]} 49. Kh3 {[%clk 0:00:06.4]} 49...
Qh8+ {[%clk 0:00:09]} 50. Kg3 {[%clk 0:00:07.1]} 50... Qg7+ {[%clk 0:00:09.8]}
51. Kh3 {[%clk 0:00:07.6]} 51... Qh6+ {[%clk 0:00:10.5]} 52. Kg3 {[%clk
0:00:08.9]} 52... Qg6+ {[%clk 0:00:11.7]} 53. Kh3 {[%clk 0:00:10]} 53... Qf5+
{[%clk 0:00:09.7]} 54. Kh4 {[%clk 0:00:10.8]} 54... Qf4+ {[%clk 0:00:10.3]} 55.
Kh5 {[%clk 0:00:11.9]} 55... Qe5+ {[%clk 0:00:11]} 56. Kh4 {[%clk 0:00:12.9]}
56... Qd4+ {[%clk 0:00:11.6]} 57. Kg5 {[%clk 0:00:11.8]} 57... Qc5+ {[%clk
0:00:12.5]} 58. Kf6 {[%clk 0:00:12.6]} 58... Kb3 {[%clk 0:00:13.6]} 59. Qb5+
{[%clk 0:00:07.9]} 59... Qxb5 {[%clk 0:00:13.3]} 60. axb5 {[%clk 0:00:09.8]}
60... Kc4 {[%clk 0:00:14.6]} 61. Ke5 {[%clk 0:00:10.2]} 61... Kxb5 {[%clk
0:00:15.9]} 62. Kd5 {[%clk 0:00:11.4]} 62... Kb4 {[%clk 0:00:15.9]} 63. Kc6
{[%clk 0:00:12.3]} 63... b5 {[%clk 0:00:17]} 64. b3 {[%clk 0:00:06.6]} 64...
Kxb3 {[%clk 0:00:16.6]} 65. Kxb5 {[%clk 0:00:07]} 1/2-1/2

[Event "*** Titled Tuesday Blitz"]
[Site "Chess.com"]
[Date "2019.08.06"]
[Round "8"]
[White "Caisachess"]
[Black "Jahonas"]
[Result "1/2-1/2"]
[WhiteElo "2322"]
[BlackElo "2404"]
[TimeControl "180+2"]
[EndTime "14:57:18 PDT"]
[Termination "Game drawn by agreement"]

1. e4 {[%clk 0:03:01]} 1... c6 {[%clk 0:03:00.2]} 2. Nc3 {[%clk 0:03:01.4]} 2...
d5 {[%clk 0:03:01.1]} 3. Nf3 {[%clk 0:03:01.8]} 3... Bg4 {[%clk 0:02:57.9]} 4.
h3 {[%clk 0:03:01.7]} 4... Bxf3 {[%clk 0:02:58.5]} 5. Qxf3 {[%clk 0:03:02.2]}
5... e6 {[%clk 0:02:59.5]} 6. exd5 {[%clk 0:03:00.1]} 6... cxd5 {[%clk
0:02:59.5]} 7. d4 {[%clk 0:03:01.1]} 7... Nf6 {[%clk 0:02:59.8]} 8. Bd3 {[%clk
0:03:01.6]} 8... Nc6 {[%clk 0:03:00.2]} 9. Ne2 {[%clk 0:03:01.1]} 9... Be7
{[%clk 0:02:50.8]} 10. c3 {[%clk 0:02:57.1]} 10... a6 {[%clk 0:02:51.2]} 11. O-O
{[%clk 0:02:58.1]} 11... O-O {[%clk 0:02:47.2]} 12. Ng3 {[%clk 0:02:52.7]} 12...
e5 {[%clk 0:02:43.3]} 13. dxe5 {[%clk 0:02:48.7]} 13... Nxe5 {[%clk 0:02:43.9]}
14. Qe2 {[%clk 0:02:48.5]} 14... Nxd3 {[%clk 0:02:40.9]} 15. Qxd3 {[%clk
0:02:49.6]} 15... Re8 {[%clk 0:02:31.4]} 16. Be3 {[%clk 0:02:47]} 16... Qc7
{[%clk 0:01:41.9]} 17. Rad1 {[%clk 0:02:43.7]} 17... Rad8 {[%clk 0:01:40.3]} 18.
Nf5 {[%clk 0:02:44.2]} 18... Bf8 {[%clk 0:01:28.8]} 19. Bg5 {[%clk 0:02:44.3]}
19... Re6 {[%clk 0:01:23.8]} 20. Nd4 {[%clk 0:02:33.9]} 20... Rb6 {[%clk
0:01:20.4]} 21. Rd2 {[%clk 0:02:24.6]} 21... h6 {[%clk 0:01:12.1]} 22. Bh4
{[%clk 0:02:25.6]} 22... Qc4 {[%clk 0:01:02.2]} 23. b3 {[%clk 0:01:56.9]} 23...
Qxd3 {[%clk 0:01:02.7]} 24. Rxd3 {[%clk 0:01:58.3]} 24... Rc8 {[%clk 0:01:01.7]}
25. Rfd1 {[%clk 0:01:56.7]} 25... Ne4 {[%clk 0:00:59.2]} 26. Ne2 {[%clk
0:01:50.8]} 26... Rbc6 {[%clk 0:00:54]} 27. Rxd5 {[%clk 0:01:42.3]} 27... Nxc3
{[%clk 0:00:54.7]} 28. Nxc3 {[%clk 0:01:42.8]} 28... Rxc3 {[%clk 0:00:55.8]} 29.
Rd7 {[%clk 0:01:40.8]} 29... R3c7 {[%clk 0:00:49.9]} 30. Rxc7 {[%clk 0:01:37.9]}
30... Rxc7 {[%clk 0:00:50.9]} 31. Rd8 {[%clk 0:01:39.3]} 31... g5 {[%clk
0:00:46]} 32. Bg3 {[%clk 0:01:40.4]} 32... Rc1+ {[%clk 0:00:44.6]} 33. Kh2
{[%clk 0:01:41.4]} 33... Kg7 {[%clk 0:00:45.7]} 34. Be5+ {[%clk 0:01:41.7]}
34... f6 {[%clk 0:00:45.6]} 35. Bxf6+ {[%clk 0:01:42.6]} 35... Kxf6 {[%clk
0:00:46.7]} 36. Rxf8+ {[%clk 0:01:43.8]} 36... Kg6 {[%clk 0:00:46.6]} 37. Rb8
{[%clk 0:01:41.5]} 37... Rc2 {[%clk 0:00:45.4]} 38. Rxb7 {[%clk 0:01:42.5]}
38... Rxa2 {[%clk 0:00:46.5]} 39. f3 {[%clk 0:01:32.2]} 39... a5 {[%clk
0:00:46.8]} 40. Kg3 {[%clk 0:01:26.6]} 40... a4 {[%clk 0:00:46.7]} 41. bxa4
{[%clk 0:01:23.6]} 41... Rxa4 {[%clk 0:00:47.4]} 42. Rb2 {[%clk 0:01:20.5]}
42... Rc4 {[%clk 0:00:47.6]} 43. Kf2 {[%clk 0:01:17.1]} 43... Ra4 {[%clk
0:00:45.9]} 44. g4 {[%clk 0:01:08]} 44... Ra3 {[%clk 0:00:45.7]} 45. Kg3 {[%clk
0:01:08.6]} 45... Rc3 {[%clk 0:00:46.4]} 46. Rf2 {[%clk 0:01:07.6]} 46... h5
{[%clk 0:00:46.1]} 47. h4 {[%clk 0:01:03.3]} 47... hxg4 {[%clk 0:00:43.4]} 48.
Kxg4 {[%clk 0:01:03.5]} 48... gxh4 {[%clk 0:00:44.5]} 49. Kxh4 {[%clk 0:01:05]}
49... Kf5 {[%clk 0:00:45.1]} 50. Kg3 {[%clk 0:00:59]} 50... Rc8 {[%clk
0:00:41.5]} 51. Ra2 {[%clk 0:00:56.6]} 51... Rg8+ {[%clk 0:00:40.6]} 52. Kf2
{[%clk 0:00:57.7]} 52... Re8 {[%clk 0:00:39.9]} 53. Ra5+ {[%clk 0:00:55.9]}
53... Re5 {[%clk 0:00:41]} 54. Ra8 {[%clk 0:00:54.4]} 54... Rb5 {[%clk
0:00:41.3]} 55. Kg3 {[%clk 0:00:55.2]} 55... Rb4 {[%clk 0:00:35.7]} 56. Rf8+
{[%clk 0:00:53.5]} 56... Kg5 {[%clk 0:00:34.6]} 57. f4+ {[%clk 0:00:54.7]} 57...
Kg6 {[%clk 0:00:34.9]} 58. Kg4 {[%clk 0:00:56.2]} 58... Ra4 {[%clk 0:00:32.2]}
59. Rc8 {[%clk 0:00:56]} 59... Kf6 {[%clk 0:00:31.7]} 60. Rc6+ {[%clk
0:00:56.8]} 60... Kf7 {[%clk 0:00:31]} 61. Kg5 {[%clk 0:00:58.2]} 61... Ra5+
{[%clk 0:00:30.2]} 62. f5 {[%clk 0:00:58.5]} 62... Ra7 {[%clk 0:00:23.3]} 63.
Rh6 {[%clk 0:00:56.4]} 63... Kg7 {[%clk 0:00:24]} 64. Rb6 {[%clk 0:00:38.8]}
64... Rc7 {[%clk 0:00:24.2]} 65. Rg6+ {[%clk 0:00:36.1]} 65... Kf7 {[%clk
0:00:22.6]} 66. Rh6 {[%clk 0:00:31.8]} 66... Kg7 {[%clk 0:00:23.2]} 67. f6+
{[%clk 0:00:33.2]} 67... Kg8 {[%clk 0:00:23.4]} 68. Kg6 {[%clk 0:00:31.9]} 68...
Rc1 {[%clk 0:00:23.3]} 69. Rh5 {[%clk 0:00:31.3]} 69... Rg1+ {[%clk 0:00:24.2]}
70. Kf5 {[%clk 0:00:29.1]} 70... Kf7 {[%clk 0:00:24.2]} 71. Rh7+ {[%clk
0:00:29.7]} 71... Kf8 {[%clk 0:00:25.2]} 72. Rb7 {[%clk 0:00:23.7]} 72... Rf1+
{[%clk 0:00:26]} 73. Ke6 {[%clk 0:00:23.9]} 73... Re1+ {[%clk 0:00:27.1]} 74.
Kf5 {[%clk 0:00:24.9]} 74... Rf1+ {[%clk 0:00:28.2]} 1/2-1/2